[Event "*** Titled Tuesday 3|2 Blitz"]
[Site "Chess.com"]
[Date "2015.09.01"]
[Round "1"]
[White "Fawolizzo"]
[Black "Aygehovit1992"]
[Result "0-1"]
[WhiteElo "1955"]
[BlackElo "2336"]
[TimeControl "180+2"]
[EndTime "11:09:08 PDT"]
[Termination "Aygehovit1992 won by resignation"]

1. d4 {[%clk 0:02:55.5]} 1... Nf6 {[%clk 0:02:57.1]} 2. c4 {[%clk 0:02:54.7]}
2... g6 {[%clk 0:02:58]} 3. Nf3 {[%clk 0:02:55.3]} 3... Bg7 {[%clk 0:02:58.6]}
4. Nc3 {[%clk 0:02:56.7]} 4... O-O {[%clk 0:02:59]} 5. e4 {[%clk 0:02:57.1]}
5... d6 {[%clk 0:03:00.5]} 6. Be2 {[%clk 0:02:58.3]} 6... e5 {[%clk 0:03:01.9]}
7. O-O {[%clk 0:02:58.1]} 7... Nc6 {[%clk 0:03:02.7]} 8. d5 {[%clk 0:02:59.3]}
8... Ne7 {[%clk 0:03:03.9]} 9. Ne1 {[%clk 0:03:00.4]} 9... Nd7 {[%clk
0:03:04.4]} 10. Be3 {[%clk 0:03:00.6]} 10... f5 {[%clk 0:03:05.7]} 11. f3 {[%clk
0:03:01.6]} 11... f4 {[%clk 0:03:06.9]} 12. Bf2 {[%clk 0:03:02.7]} 12... g5
{[%clk 0:03:08.3]} 13. b4 {[%clk 0:02:59.2]} 13... Ng6 {[%clk 0:03:04.6]} 14.
Nd3 {[%clk 0:02:59.2]} 14... Nf6 {[%clk 0:03:05.7]} 15. c5 {[%clk 0:02:59.1]}
15... Rf7 {[%clk 0:03:07]} 16. Rc1 {[%clk 0:02:59]} 16... Bf8 {[%clk 0:03:06.7]}
17. Qb3 {[%clk 0:02:57.2]} 17... h5 {[%clk 0:03:04.8]} 18. a4 {[%clk 0:02:53.1]}
18... g4 {[%clk 0:03:05.5]} 19. b5 {[%clk 0:02:43.9]} 19... Rg7 {[%clk
0:03:06.1]} 20. Kh1 {[%clk 0:02:43.8]} 20... g3 {[%clk 0:03:04.4]} 21. hxg3
{[%clk 0:02:42.6]} 21... fxg3 {[%clk 0:03:05.1]} 22. Bxg3 {[%clk 0:02:43]} 22...
h4 {[%clk 0:03:06.4]} 23. Bf2 {[%clk 0:02:41]} 23... Nh5 {[%clk 0:03:07.5]} 24.
cxd6 {[%clk 0:02:32]} 24... cxd6 {[%clk 0:02:57.4]} 25. Rfe1 {[%clk 0:02:26.5]}
25... Ng3+ {[%clk 0:02:57.6]} 26. Kg1 {[%clk 0:02:19.7]} 26... Qg5 {[%clk
0:02:42.5]} 27. f4 {[%clk 0:02:05.4]} 27... Nxf4 {[%clk 0:02:35.9]} 28. Nxf4
{[%clk 0:02:03.8]} 28... exf4 {[%clk 0:02:37.2]} 29. Bf3 {[%clk 0:02:03.9]}
29... h3 {[%clk 0:02:38.6]} 30. Bxg3 {[%clk 0:01:57.2]} 30... fxg3 {[%clk
0:02:34.7]} 31. gxh3 {[%clk 0:01:51.8]} 31... Qh4 {[%clk 0:02:27.9]} 32. Bg2
{[%clk 0:01:47.1]} 32... Bxh3 {[%clk 0:02:28.1]} 33. Qb2 {[%clk 0:01:43.7]}
33... Bxg2 {[%clk 0:02:22.8]} 34. Qxg2 {[%clk 0:01:43.2]} 34... Rc8 {[%clk
0:02:21.9]} 35. Ne2 {[%clk 0:01:42.5]} 35... Re8 {[%clk 0:02:07.3]} 36. Nd4
{[%clk 0:01:41.3]} 36... Rg4 {[%clk 0:01:55.1]} 37. Ne6 {[%clk 0:01:31.1]} 37...
Bh6 {[%clk 0:01:52.5]} 38. Rc7 {[%clk 0:01:22.2]} 38... Bd2 {[%clk 0:01:12.3]}
39. Re2 {[%clk 0:01:16.8]} 39... Ba5 {[%clk 0:01:11.7]} 40. Rc4 {[%clk 0:01:04]}
40... Bb6+ {[%clk 0:01:12.3]} 41. Kf1 {[%clk 0:01:03.4]} 41... Qf6+ {[%clk
0:01:06.4]} 42. Ke1 {[%clk 0:01:01.8]} 42... Qa1+ {[%clk 0:01:07.2]} 43. Kd2
{[%clk 0:01:02.4]} 43... Qa2+ {[%clk 0:01:02.4]} 44. Kd3 {[%clk 0:01:00.1]}
44... Qb3+ {[%clk 0:00:57.2]} 45. Rc3 {[%clk 0:01:00.1]} 45... Qd1+ {[%clk
0:00:51.5]} 46. Rd2 {[%clk 0:00:57.5]} 46... Qxa4 {[%clk 0:00:52.3]} 47. Rc4
{[%clk 0:00:54.8]} 47... Qb3+ {[%clk 0:00:52.3]} 48. Rc3 {[%clk 0:00:54.3]}
48... Qxb5+ {[%clk 0:00:53.4]} 49. Kc2 {[%clk 0:00:55.2]} 49... Qa4+ {[%clk
0:00:54.6]} 50. Kd3 {[%clk 0:00:53.4]} 50... Ba5 {[%clk 0:00:41.3]} 51. Qf3
{[%clk 0:00:53.8]} 51... Qxe4+ {[%clk 0:00:38.3]} 52. Qxe4 {[%clk 0:00:49.1]}
52... Rxe4 {[%clk 0:00:39.7]} 53. Kxe4 {[%clk 0:00:49.5]} 53... Bxc3 {[%clk
0:00:40.7]} 54. Rd3 {[%clk 0:00:47.6]} 54... Be5 {[%clk 0:00:41.7]} 55. Kf5
{[%clk 0:00:47.4]} 55... g2 {[%clk 0:00:41.2]} 56. Rd1 {[%clk 0:00:45.7]} 56...
Bh2 {[%clk 0:00:42.3]} 57. Kf6 {[%clk 0:00:44.4]} 57... g1=Q {[%clk 0:00:43.1]}
58. Rxg1+ {[%clk 0:00:44.6]} 58... Bxg1 {[%clk 0:00:44.3]} 59. Kf5 {[%clk
0:00:45.7]} 59... a5 {[%clk 0:00:44.7]} 0-1

[Event "*** Titled Tuesday 3|2 Blitz"]
[Site "Chess.com"]
[Date "2015.09.01"]
[Round "1"]
[White "Tesla37"]
[Black "Tirantes"]
[Result "0-1"]
[WhiteElo "2557"]
[BlackElo "2239"]
[TimeControl "180+2"]
[EndTime "11:09:18 PDT"]
[Termination "Tirantes won by resignation"]

1. g3 {[%clk 0:02:51.4]} 1... c5 {[%clk 0:02:55.7]} 2. Bg2 {[%clk 0:02:52.4]}
2... Nc6 {[%clk 0:02:56.1]} 3. Nf3 {[%clk 0:02:53.9]} 3... e5 {[%clk 0:02:55.7]}
4. O-O {[%clk 0:02:55]} 4... g6 {[%clk 0:02:55.3]} 5. c4 {[%clk 0:02:52.9]} 5...
Bg7 {[%clk 0:02:55.5]} 6. Nc3 {[%clk 0:02:53.2]} 6... Nge7 {[%clk 0:02:55.7]} 7.
d3 {[%clk 0:02:54.2]} 7... d6 {[%clk 0:02:56.2]} 8. a3 {[%clk 0:02:54.1]} 8...
O-O {[%clk 0:02:53.9]} 9. Rb1 {[%clk 0:02:54.6]} 9... a5 {[%clk 0:02:53.1]} 10.
Ne1 {[%clk 0:02:54]} 10... Be6 {[%clk 0:02:52.7]} 11. Nc2 {[%clk 0:02:54.9]}
11... d5 {[%clk 0:02:50.2]} 12. cxd5 {[%clk 0:02:55.2]} 12... Nxd5 {[%clk
0:02:50.4]} 13. Ne3 {[%clk 0:02:56.8]} 13... Nde7 {[%clk 0:02:49.4]} 14. Bd2
{[%clk 0:02:48.9]} 14... Rb8 {[%clk 0:02:47.7]} 15. Ne4 {[%clk 0:02:46.2]} 15...
b6 {[%clk 0:02:46.1]} 16. Nc4 {[%clk 0:02:46]} 16... h6 {[%clk 0:02:40.5]} 17.
h4 {[%clk 0:02:35.6]} 17... f5 {[%clk 0:02:39.5]} 18. Nc3 {[%clk 0:02:36.6]}
18... Qd7 {[%clk 0:02:37.7]} 19. Nb5 {[%clk 0:02:23]} 19... Nd4 {[%clk
0:02:28.6]} 20. Nxd4 {[%clk 0:02:23.3]} 20... cxd4 {[%clk 0:02:25.1]} 21. Rc1
{[%clk 0:02:23.5]} 21... a4 {[%clk 0:02:22.3]} 22. f4 {[%clk 0:02:22]} 22... e4
{[%clk 0:02:11.3]} 23. dxe4 {[%clk 0:02:20.3]} 23... fxe4 {[%clk 0:02:10.8]} 24.
Bxe4 {[%clk 0:02:16.6]} 24... Nf5 {[%clk 0:02:06.9]} 25. Kh2 {[%clk 0:02:10.8]}
25... Bd5 {[%clk 0:02:06.3]} 26. Qc2 {[%clk 0:01:49]} 26... Rfe8 {[%clk
0:02:05.8]} 27. Bxd5+ {[%clk 0:01:47.5]} 27... Qxd5 {[%clk 0:02:05.2]} 28. Qd3
{[%clk 0:01:49]} 28... b5 {[%clk 0:01:54.4]} 29. Na5 {[%clk 0:01:40.8]} 29...
Re6 {[%clk 0:01:47]} 30. Rf2 {[%clk 0:01:26.5]} 30... Rbe8 {[%clk 0:01:41]} 31.
Rc7 {[%clk 0:01:11.1]} 31... h5 {[%clk 0:01:39.2]} 32. Nb7 {[%clk 0:01:10]}
32... Rc6 {[%clk 0:01:29.4]} 33. Rxc6 {[%clk 0:01:02.1]} 33... Qxc6 {[%clk
0:01:29.7]} 34. Na5 {[%clk 0:01:03.1]} 34... Qd5 {[%clk 0:01:27.7]} 35. Kg1
{[%clk 0:01:00.3]} 35... Bf6 {[%clk 0:01:20.8]} 36. Rf3 {[%clk 0:00:59.5]} 36...
Bd8 {[%clk 0:01:19.4]} 37. b3 {[%clk 0:00:56.4]} 37... Bxa5 {[%clk 0:01:17.7]}
38. Bxa5 {[%clk 0:00:56.6]} 38... axb3 {[%clk 0:01:13.1]} 39. Qxb3 {[%clk
0:00:57.6]} 39... Qxb3 {[%clk 0:01:13.6]} 40. Rxb3 {[%clk 0:00:59]} 40... Rxe2
{[%clk 0:01:13.4]} 41. Rxb5 {[%clk 0:00:59.5]} 41... Nxg3 {[%clk 0:01:04.5]} 42.
Rg5 {[%clk 0:00:58.5]} 42... Nf5 {[%clk 0:00:57.8]} 43. Rxg6+ {[%clk 0:00:59.1]}
43... Kf7 {[%clk 0:00:58.3]} 44. Rg5 {[%clk 0:01:00.3]} 44... Ke6 {[%clk
0:00:56.1]} 45. Kf1 {[%clk 0:00:51.5]} 45... Rh2 {[%clk 0:00:49.9]} 46. Ke1
{[%clk 0:00:49.4]} 46... d3 {[%clk 0:00:46.9]} 47. Rxh5 {[%clk 0:00:43]} 47...
Re2+ {[%clk 0:00:43.8]} 48. Kd1 {[%clk 0:00:44.1]} 48... Ne3+ {[%clk 0:00:32.4]}
49. Kc1 {[%clk 0:00:44.7]} 49... Nc4 {[%clk 0:00:31.8]} 50. Rc5 {[%clk
0:00:30.2]} 50... Rc2+ {[%clk 0:00:27.6]} 51. Kb1 {[%clk 0:00:30.5]} 51... Nxa3+
{[%clk 0:00:27.5]} 52. Ka1 {[%clk 0:00:30.7]} 52... Rxc5 {[%clk 0:00:28.1]} 53.
Bb4 {[%clk 0:00:30.7]} 53... Nc2+ {[%clk 0:00:27.6]} 0-1

[Event "*** Titled Tuesday 3|2 Blitz"]
[Site "Chess.com"]
[Date "2015.09.01"]
[Round "1"]
[White "lukas_111111"]
[Black "MITerryble"]
[Result "0-1"]
[WhiteElo "2205"]
[BlackElo "2584"]
[TimeControl "180+2"]
[EndTime "11:09:28 PDT"]
[Termination "MITerryble won by resignation"]

1. e4 {[%clk 0:02:50.8]} 1... e6 {[%clk 0:03:00.7]} 2. d4 {[%clk 0:02:48.2]}
2... d5 {[%clk 0:03:00.9]} 3. Nc3 {[%clk 0:02:47.4]} 3... Nf6 {[%clk 0:03:00.9]}
4. e5 {[%clk 0:02:47.8]} 4... Nfd7 {[%clk 0:03:01.5]} 5. f4 {[%clk 0:02:49.2]}
5... c5 {[%clk 0:03:03.1]} 6. Nf3 {[%clk 0:02:50.5]} 6... Nc6 {[%clk 0:03:04.7]}
7. Be3 {[%clk 0:02:51.6]} 7... Be7 {[%clk 0:03:06]} 8. Qd2 {[%clk 0:02:51.8]}
8... O-O {[%clk 0:03:07]} 9. dxc5 {[%clk 0:02:51.8]} 9... Bxc5 {[%clk
0:03:07.6]} 10. O-O-O {[%clk 0:02:52.4]} 10... Qa5 {[%clk 0:03:08.4]} 11. a3
{[%clk 0:02:51]} 11... Rd8 {[%clk 0:03:01.8]} 12. Nd4 {[%clk 0:02:49.9]} 12...
a6 {[%clk 0:02:40.7]} 13. Kb1 {[%clk 0:02:47.5]} 13... Bxd4 {[%clk 0:02:30.6]}
14. Bxd4 {[%clk 0:02:46.9]} 14... b5 {[%clk 0:02:32.2]} 15. Ne2 {[%clk
0:02:26.3]} 15... b4 {[%clk 0:02:27.6]} 16. b3 {[%clk 0:02:11.5]} 16... Qxa3
{[%clk 0:02:00.2]} 17. Bb2 {[%clk 0:02:10.7]} 17... Qa5 {[%clk 0:02:00.9]} 18.
Nd4 {[%clk 0:01:51.1]} 18... Nxd4 {[%clk 0:02:00.6]} 19. Qxd4 {[%clk 0:01:51.3]}
19... Nc5 {[%clk 0:02:01.5]} 20. Bd3 {[%clk 0:01:39.4]} 20... Bd7 {[%clk
0:01:31.6]} 21. g4 {[%clk 0:01:31.8]} 21... Rac8 {[%clk 0:01:12]} 22. f5 {[%clk
0:01:28.6]} 22... Nxd3 {[%clk 0:01:10]} 23. Qxd3 {[%clk 0:01:17.4]} 23... Qb5
{[%clk 0:01:04.7]} 24. Qd2 {[%clk 0:01:16.5]} 24... exf5 {[%clk 0:00:59.9]} 25.
e6 {[%clk 0:01:08.2]} 25... Bxe6 {[%clk 0:01:01]} 26. Qg5 {[%clk 0:00:49.8]}
26... d4 {[%clk 0:00:53.1]} 27. Bxd4 {[%clk 0:00:34.4]} 27... Rxd4 {[%clk
0:00:54]} 28. Rxd4 {[%clk 0:00:34.6]} 28... h6 {[%clk 0:00:55.9]} 29. Qf4 {[%clk
0:00:25.7]} 29... a5 {[%clk 0:00:30.8]} 30. g5 {[%clk 0:00:22.6]} 30... hxg5
{[%clk 0:00:22.9]} 31. Qxg5 {[%clk 0:00:22.6]} 31... Qc6 {[%clk 0:00:20.9]} 32.
Qc1 {[%clk 0:00:16.8]} 32... Bd5 {[%clk 0:00:16.1]} 33. Rg1 {[%clk 0:00:17.3]}
33... Be4 {[%clk 0:00:16.7]} 34. Rc4 {[%clk 0:00:18.1]} 34... Qe6 {[%clk
0:00:17.2]} 35. Rxc8+ {[%clk 0:00:18.6]} 35... Qxc8 {[%clk 0:00:19.1]} 36. Qd2
{[%clk 0:00:18.4]} 36... g6 {[%clk 0:00:17.1]} 37. h4 {[%clk 0:00:17.9]} 37...
a4 {[%clk 0:00:16.7]} 38. bxa4 {[%clk 0:00:17.1]} 38... b3 {[%clk 0:00:17.9]}
39. Kb2 {[%clk 0:00:17.2]} 39... bxc2 {[%clk 0:00:18.6]} 40. Rg3 {[%clk
0:00:14.3]} 40... Qb8+ {[%clk 0:00:08.5]} 41. Rb3 {[%clk 0:00:15]} 41... Qe5+
{[%clk 0:00:10.1]} 42. Qc3 {[%clk 0:00:16.1]} 42... Qh2 {[%clk 0:00:10.9]} 43.
a5 {[%clk 0:00:07.8]} 43... Kh7 {[%clk 0:00:10.6]} 44. a6 {[%clk 0:00:08.4]}
44... Qg1 {[%clk 0:00:10.8]} 45. Qd2 {[%clk 0:00:05.2]} 45... Qb1+ {[%clk
0:00:10.6]} 46. Kc3 {[%clk 0:00:06.1]} 46... c1=Q+ {[%clk 0:00:12.1]} 0-1

[Event "*** Titled Tuesday 3|2 Blitz"]
[Site "Chess.com"]
[Date "2015.09.01"]
[Round "1"]
[White "stepanosinovsky"]
[Black "Tal-Baronfew"]
[Result "1/2-1/2"]
[WhiteElo "2271"]
[BlackElo "2776"]
[TimeControl "180+2"]
[EndTime "11:10:30 PDT"]
[Termination "Game drawn - insufficient material"]

1. g3 {[%clk 0:03:00.7]} 1... d5 {[%clk 0:02:58.8]} 2. Bg2 {[%clk 0:03:02.6]}
2... Nf6 {[%clk 0:02:58.2]} 3. d3 {[%clk 0:03:03.8]} 3... e5 {[%clk 0:02:57.6]}
4. Nd2 {[%clk 0:03:05]} 4... Bc5 {[%clk 0:02:55.4]} 5. e4 {[%clk 0:02:58.6]}
5... dxe4 {[%clk 0:02:36.4]} 6. dxe4 {[%clk 0:02:48.2]} 6... Bg4 {[%clk
0:02:23.5]} 7. Ngf3 {[%clk 0:02:36.5]} 7... Nc6 {[%clk 0:02:21.6]} 8. c3 {[%clk
0:02:13.5]} 8... Qd3 {[%clk 0:02:14.7]} 9. Qe2 {[%clk 0:01:57.3]} 9... O-O-O
{[%clk 0:02:09.4]} 10. h3 {[%clk 0:01:52.7]} 10... Bh5 {[%clk 0:02:03.3]} 11.
Qxd3 {[%clk 0:01:23.7]} 11... Rxd3 {[%clk 0:02:03.5]} 12. Ke2 {[%clk 0:01:24.3]}
12... Rhd8 {[%clk 0:02:03]} 13. g4 {[%clk 0:01:24.9]} 13... Bg6 {[%clk
0:02:03.6]} 14. Ne1 {[%clk 0:01:25.4]} 14... R3d7 {[%clk 0:02:00.2]} 15. f3
{[%clk 0:01:18.9]} 15... Ne8 {[%clk 0:01:50.3]} 16. b4 {[%clk 0:01:12.1]} 16...
Bb6 {[%clk 0:01:46.5]} 17. Nc4 {[%clk 0:01:12.7]} 17... f6 {[%clk 0:01:46.5]}
18. a4 {[%clk 0:01:11.4]} 18... Bf7 {[%clk 0:01:45.7]} 19. Nxb6+ {[%clk
0:00:51.3]} 19... axb6 {[%clk 0:01:47]} 20. Be3 {[%clk 0:00:45.5]} 20... Nd6
{[%clk 0:01:43.3]} 21. Nc2 {[%clk 0:00:31.7]} 21... Nc4 {[%clk 0:01:38.4]} 22.
Rhd1 {[%clk 0:00:30.8]} 22... Nb2 {[%clk 0:01:19.2]} 23. Rxd7 {[%clk 0:00:29.8]}
23... Rxd7 {[%clk 0:01:20.9]} 24. Bf1 {[%clk 0:00:27.9]} 24... Bb3 {[%clk
0:01:08.7]} 25. Na3 {[%clk 0:00:20.8]} 25... Nxa4 {[%clk 0:01:04.4]} 26. Rc1
{[%clk 0:00:19.9]} 26... Nb2 {[%clk 0:00:48.2]} 27. Kf2 {[%clk 0:00:18.4]} 27...
Nd1+ {[%clk 0:00:47.7]} 28. Ke2 {[%clk 0:00:18.5]} 28... Nb2 {[%clk 0:00:46.5]}
29. Kf2 {[%clk 0:00:19.3]} 29... Rd1 {[%clk 0:00:43.3]} 30. Be2 {[%clk
0:00:14.6]} 30... Rxc1 {[%clk 0:00:29.8]} 31. Bxc1 {[%clk 0:00:16.5]} 31... Nd1+
{[%clk 0:00:29]} 32. Bxd1 {[%clk 0:00:16.4]} 32... Bxd1 {[%clk 0:00:30.7]} 33.
Nc4 {[%clk 0:00:16.8]} 33... Kd7 {[%clk 0:00:27.4]} 34. h4 {[%clk 0:00:17.3]}
34... h6 {[%clk 0:00:26.8]} 35. h5 {[%clk 0:00:17.4]} 35... Nd8 {[%clk
0:00:25.7]} 36. Ne3 {[%clk 0:00:15.4]} 36... Bb3 {[%clk 0:00:26.5]} 37. Nf5
{[%clk 0:00:16.1]} 37... Ne6 {[%clk 0:00:27.3]} 38. Be3 {[%clk 0:00:11.9]} 38...
Kc6 {[%clk 0:00:28.2]} 39. Ke2 {[%clk 0:00:08.9]} 39... Kb5 {[%clk 0:00:29.1]}
40. Kd2 {[%clk 0:00:10]} 40... Bc4 {[%clk 0:00:26.7]} 41. Ne7 {[%clk 0:00:09.2]}
41... Bf1 {[%clk 0:00:25.6]} 42. Nd5 {[%clk 0:00:08.9]} 42... Ka4 {[%clk
0:00:17.1]} 43. f4 {[%clk 0:00:07.7]} 43... exf4 {[%clk 0:00:17.9]} 44. Nxf4
{[%clk 0:00:07.7]} 44... Ng5 {[%clk 0:00:18.6]} 45. Nd5 {[%clk 0:00:02.4]} 45...
c6 {[%clk 0:00:18.4]} 46. Nxb6+ {[%clk 0:00:02.8]} 46... Kb3 {[%clk 0:00:18.8]}
47. Bxg5 {[%clk 0:00:04.7]} 47... hxg5 {[%clk 0:00:18.2]} 48. Nd7 {[%clk
0:00:06.3]} 48... Bc4 {[%clk 0:00:17.2]} 49. e5 {[%clk 0:00:06.5]} 49... fxe5
{[%clk 0:00:15.4]} 50. Nxe5 {[%clk 0:00:08.4]} 50... Be6 {[%clk 0:00:16.5]} 51.
Nf3 {[%clk 0:00:09.3]} 51... Bxg4 {[%clk 0:00:17.4]} 52. Nxg5 {[%clk 0:00:10.8]}
52... Bxh5 {[%clk 0:00:19]} 53. Ne6 {[%clk 0:00:12]} 53... g6 {[%clk 0:00:20.5]}
54. Nc5+ {[%clk 0:00:13.3]} 54... Kc4 {[%clk 0:00:20.8]} 55. Nxb7 {[%clk
0:00:15.2]} 55... g5 {[%clk 0:00:21.5]} 56. Nc5 {[%clk 0:00:15.9]} 56... Kd5
{[%clk 0:00:22.6]} 57. Nd3 {[%clk 0:00:16.5]} 57... Bg6 {[%clk 0:00:22.2]} 58.
Ne1 {[%clk 0:00:17.1]} 58... Be4 {[%clk 0:00:22.7]} 59. Ke3 {[%clk 0:00:15.7]}
59... Bh1 {[%clk 0:00:19.5]} 60. Nd3 {[%clk 0:00:15.3]} 60... Kc4 {[%clk
0:00:21.1]} 61. Ne5+ {[%clk 0:00:16.2]} 61... Kxc3 {[%clk 0:00:21.7]} 62. Nf7
{[%clk 0:00:14.8]} 62... g4 {[%clk 0:00:22.9]} 63. Kf4 {[%clk 0:00:16]} 63...
Bf3 {[%clk 0:00:23.6]} 64. Ne5 {[%clk 0:00:17]} 64... Kxb4 {[%clk 0:00:24.6]}
65. Nxc6+ {[%clk 0:00:18.2]} 65... Bxc6 {[%clk 0:00:20.9]} 66. Kxg4 {[%clk
0:00:19.4]} 1/2-1/2

[Event "*** Titled Tuesday 3|2 Blitz"]
[Site "Chess.com"]
[Date "2015.09.01"]
[Round "1"]
[White "pedromartinez91"]
[Black "dretch"]
[Result "0-1"]
[WhiteElo "2211"]
[BlackElo "2615"]
[TimeControl "180+2"]
[EndTime "11:10:42 PDT"]
[Termination "dretch won on time"]

1. e4 {[%clk 0:03:00.3]} 1... e6 {[%clk 0:03:01.2]} 2. d4 {[%clk 0:03:00.2]}
2... d5 {[%clk 0:03:02.8]} 3. Nd2 {[%clk 0:03:00.6]} 3... c5 {[%clk 0:03:02.5]}
4. exd5 {[%clk 0:03:01.1]} 4... Qxd5 {[%clk 0:03:03.7]} 5. dxc5 {[%clk
0:02:55.9]} 5... Nf6 {[%clk 0:03:04.8]} 6. Ngf3 {[%clk 0:02:51.6]} 6... Qxc5
{[%clk 0:03:03.3]} 7. Bd3 {[%clk 0:02:52.1]} 7... Nbd7 {[%clk 0:03:03]} 8. O-O
{[%clk 0:02:53.1]} 8... Qc7 {[%clk 0:03:03.3]} 9. a4 {[%clk 0:02:47.5]} 9... b6
{[%clk 0:03:00.7]} 10. Ne4 {[%clk 0:02:46.6]} 10... Nxe4 {[%clk 0:02:58.1]} 11.
Bxe4 {[%clk 0:02:47]} 11... Bb7 {[%clk 0:03:00]} 12. Qe2 {[%clk 0:02:46.7]}
12... Be7 {[%clk 0:02:59]} 13. Bxb7 {[%clk 0:02:47.2]} 13... Qxb7 {[%clk
0:03:00.9]} 14. a5 {[%clk 0:02:47.8]} 14... O-O {[%clk 0:02:53]} 15. axb6 {[%clk
0:02:30.8]} 15... axb6 {[%clk 0:02:53.4]} 16. Be3 {[%clk 0:02:30.5]} 16... Bc5
{[%clk 0:02:49]} 17. c3 {[%clk 0:02:23.2]} 17... Qe4 {[%clk 0:02:44.3]} 18. Rfe1
{[%clk 0:02:18.1]} 18... Bxe3 {[%clk 0:02:39]} 19. Qxe3 {[%clk 0:02:16.5]} 19...
Qxe3 {[%clk 0:02:39.3]} 20. fxe3 {[%clk 0:02:17.3]} 20... Nc5 {[%clk 0:02:38.5]}
21. Ne5 {[%clk 0:02:16]} 21... b5 {[%clk 0:02:23.9]} 22. Red1 {[%clk 0:02:06.2]}
22... f6 {[%clk 0:02:17.6]} 23. Rxa8 {[%clk 0:02:01.7]} 23... Rxa8 {[%clk
0:02:19.5]} 24. Nd3 {[%clk 0:02:02.3]} 24... Rd8 {[%clk 0:02:09.6]} 25. Nf2
{[%clk 0:02:02.2]} 25... Rxd1+ {[%clk 0:02:10.6]} 26. Nxd1 {[%clk 0:02:01.3]}
26... Kf7 {[%clk 0:02:10.2]} 27. Kf2 {[%clk 0:02:01.7]} 27... e5 {[%clk
0:02:09.7]} 28. Ke2 {[%clk 0:01:49.8]} 28... Ke6 {[%clk 0:02:10]} 29. Nf2 {[%clk
0:01:46.7]} 29... Kd5 {[%clk 0:02:09.9]} 30. Nd3 {[%clk 0:01:45.8]} 30... Na4
{[%clk 0:02:08.6]} 31. Kd2 {[%clk 0:01:42.5]} 31... e4 {[%clk 0:01:47.2]} 32.
Nb4+ {[%clk 0:01:28.2]} 32... Kc4 {[%clk 0:01:45.8]} 33. Kc2 {[%clk 0:01:23.3]}
33... Nc5 {[%clk 0:01:46.9]} 34. Nc6 {[%clk 0:01:18.1]} 34... Nd3 {[%clk
0:01:41]} 35. Nd4 {[%clk 0:01:13.8]} 35... Ne1+ {[%clk 0:01:38.9]} 36. Kd2
{[%clk 0:01:11.3]} 36... Nxg2 {[%clk 0:01:38.5]} 37. b3+ {[%clk 0:01:12.5]}
37... Kc5 {[%clk 0:01:24.4]} 38. Ne6+ {[%clk 0:01:13.3]} 38... Kd5 {[%clk
0:01:25.5]} 39. Nxg7 {[%clk 0:01:14.3]} 39... Nh4 {[%clk 0:01:25.4]} 40. Nh5
{[%clk 0:01:13.4]} 40... Nf3+ {[%clk 0:01:23.2]} 41. Ke2 {[%clk 0:01:14.3]}
41... Ke5 {[%clk 0:01:21.3]} 42. c4 {[%clk 0:00:48.7]} 42... bxc4 {[%clk
0:01:20.6]} 43. bxc4 {[%clk 0:00:49.8]} 43... Nxh2 {[%clk 0:01:22.3]} 44. c5
{[%clk 0:00:50.9]} 44... Ng4 {[%clk 0:01:23.5]} 45. c6 {[%clk 0:00:49.8]} 45...
Kd6 {[%clk 0:01:24.6]} 46. Ng3 {[%clk 0:00:50.9]} 46... Kxc6 {[%clk 0:01:23.2]}
47. Nxe4 {[%clk 0:00:52]} 47... Kd5 {[%clk 0:01:23]} 48. Ng3 {[%clk 0:00:51.1]}
48... Ne5 {[%clk 0:01:12.8]} 49. Kf2 {[%clk 0:00:47.3]} 49... Ke6 {[%clk
0:01:13.5]} 50. Ne2 {[%clk 0:00:45.2]} 50... Kf5 {[%clk 0:01:13.4]} 51. Kg3
{[%clk 0:00:45]} 51... Ke4 {[%clk 0:01:02.1]} 52. Nf4 {[%clk 0:00:37.4]} 52...
f5 {[%clk 0:00:58.4]} 53. Ng2 {[%clk 0:00:27.7]} 53... Ng4 {[%clk 0:00:58.7]}
54. Nf4 {[%clk 0:00:22.9]} 54... Nxe3 {[%clk 0:00:56.3]} 55. Nh5 {[%clk
0:00:24]} 55... Nd5 {[%clk 0:00:55.2]} 56. Kh4 {[%clk 0:00:22.8]} 56... f4
{[%clk 0:00:48.6]} 57. Kg4 {[%clk 0:00:20.6]} 57... h6 {[%clk 0:00:42.3]} 58.
Ng7 {[%clk 0:00:13.6]} 58... Ne3+ {[%clk 0:00:39]} 59. Kh3 {[%clk 0:00:14.1]}
59... Nf5 {[%clk 0:00:31.1]} 60. Nh5 {[%clk 0:00:13.7]} 60... f3 {[%clk
0:00:26.4]} 61. Nf6+ {[%clk 0:00:14.8]} 61... Kd3 {[%clk 0:00:25.1]} 62. Ng4
{[%clk 0:00:15.6]} 62... Ke2 {[%clk 0:00:25.6]} 63. Nh2 {[%clk 0:00:14.8]} 63...
f2 {[%clk 0:00:26.4]} 64. Kg4 {[%clk 0:00:13.8]} 64... Nd4 {[%clk 0:00:24.6]}
65. Kg3 {[%clk 0:00:13.7]} 65... Nf3 {[%clk 0:00:23.4]} 66. Ng4 {[%clk
0:00:07.6]} 66... f1=Q {[%clk 0:00:23.2]} 67. Nxh6 {[%clk 0:00:08.6]} 67... Qg1+
{[%clk 0:00:23.1]} 0-1